[Event "CCT Airthings Masters Play-In 2023"]
[Site "Online"]
[Date "2023.02.03"]
[Round "5"]
[White "Sevian, Samuel"]
[Black "GadimbayliA"]
[Result "1-0"]
[ECO "C18"]
[WhiteElo "2687"]
[BlackElo "2597"]
[Annotator "TA"]
[PlyCount "97"]
[EventDate "2023.02.03"]
[EventType "swiss"]
[EventCountry "NET"]
[SourceTitle "playchess.com"]
[Source "ChessBase"]
[SourceQuality "1"]
[TimeControl "600+2"]

{[%evp 17,96,0,8,0,0,-24,0,0,0,-136,-151,-162,-144,-153,-121,-121,-121,-139,-132,-139,-134,-129,-122,-142,-112,-85,-88,-89,-94,-88,-61,-52,-76,-68,32,30,29,47,117,102,102,76,100,100,210,110,106,98,86,102,186,110,210,182,211,55,67,39,65,51,70,49,443,369,325,323,887,300,478,481,759,289,289,289,276,229,29975,29976,29999,29999,29999]} 1. e4 {[%emt 0:00:03]} e6 {[%emt 0:00:22]} 2. d4 {[%emt 0:00:01]} d5 {[%emt 0:00:00]} 3. Nc3 {[%emt 0:00:01]} Bb4 {[%emt 0:00:02]} 4. e5 {[%emt 0:00:00]} c5 {[%emt 0:00:01]} 5. a3 {[%emt 0:00:00]} Bxc3+ {[%emt 0:00:00]} 6. bxc3 {[%emt 0:00:01]} Ne7 {[%emt 0:00:01][%cal Bg8e7,Be7f5,Bf5d4][%mdl 32]} 7. Qg4 {[%emt 0:00:01]} Qc7 {[%emt 0:00:00]} 8. Bd3 {[%emt 0:00:03]} c4 {[%emt 0:00:02]} 9. Be2 {[%emt 0:00:04]} Nf5 {[%emt 0:00:00]} 10. a4 {[%emt 0:00:17] Recently 10.h4 got a lot of attention. C18: French: 3 Nc3 Bb4: Main line: 7 h4 and 7 Qg4.} Qa5 {[%emt 0:00:03]} 11. Ra3 {[%emt 0:00:10]} Nc6 {[%emt 0:00:03]} 12. Nf3 {[%emt 0:00:01] The position is equal.} Bd7 {[%emt 0:00:04] [#]} 13. Qh5 $146 {[%emt 0:00:01]} (13. O-O $11) ({Predecessor:} 13. O-O Nce7 14. Nh4 O-O 15. Nxf5 Nxf5 16. Qh3 Ne7 17. Bg5 Rfe8 18. Rfa1 Ng6 19. Qg3 Rac8 20. h4 h6 21. Bc1 Rc6 22. Qg4 Kh7 23. h5 {½-½ Hernandez Fernandez,N (2251)-Dahlgren,J (2308) CUB-SWE email 2015 [4]}) 13... Ncxd4 {[%emt 0:00:07]} 14. Nxd4 {[%emt 0:00:12]} Nxd4 {[%emt 0:00:00]} 15. Bd1 {[%emt 0:00:00]} Nf5 {[%emt 0:00:08]} 16. O-O {[%emt 0:00:04]} O-O {[%emt 0:01:10]} (16... Bxa4 17. Bg4 $15) 17. Bg4 {[%emt 0:00:02]} Ne7 {[%emt 0:00:09]} (17... Bxa4 18. Bxf5 exf5 19. Be3 $15) 18. Bg5 {[%emt 0:00:04]} Ng6 {[%emt 0:00:06]} 19. Be3 {[%emt 0:00:13]} Rac8 {[%emt 0:00:11]} 20. f4 {[%emt 0:00:06]} b5 {[%emt 0:00:21]} (20... Bxa4 21. f5 exf5 22. Bxf5 $11) 21. f5 {[%emt 0:00:25]} exf5 {[%emt 0:00:02]} (21... Nxe5 $2 22. fxe6 Bxe6 23. Bxe6 $18 (23. Qxe5 Bxg4 24. Qg5 Be6 $11)) 22. Bxf5 {[%emt 0:00:00]} Bxf5 {[%emt 0:00:06]} (22... Nxe5 $2 23. Qxh7#) 23. Qxf5 {[%emt 0:00:00]} b4 {[%emt 0:00:09]} 24. cxb4 {[%emt 0:00:02]} Qxb4 {[%emt 0:00:00]} 25. Raa1 {[%emt 0:00:05]} Qc3 {[%emt 0:00:01]} (25... Rc7 $15) 26. Bxa7 $14 {[%emt 0:00:06]} d4 {[%emt 0:00:56]} 27. Qe4 {[%emt 0:00:02]} Rcd8 {[%emt 0:00:12]} ({Better is} 27... d3 $14) 28. a5 {[%emt 0:00:31] Hoping for Bb6.} d3 {[%emt 0:01:34]} 29. cxd3 {[%emt 0:00:07]} cxd3 {[%emt 0:00:02]} 30. Bb6 {[%emt 0:00:06]} Rc8 {[%emt 0:02:11]} (30... Ra8 $16) 31. Rfd1 {[%emt 0:00:34]} (31. a6 $18) 31... Qxe5 {[%emt 0:01:20]} 32. Qxd3 {[%emt 0:00:01]} Nf4 {[%emt 0:00:01]} 33. Qf3 {[%emt 0:00:01]} Rc3 {[%emt 0:00:07]} (33... Rc2 $16 {is a better defense.}) 34. Qf2 {[%emt 0:00:24]} (34. Re1 $1 $18 {[%cal Re1e5]} Rxf3 35. Rxe5) 34... Qe4 {[%emt 0:00:30]} (34... Rc6 $16 {was necessary.} 35. Kh1 Ne2) 35. Re1 $36 {[%emt 0:00:09][%mdl 2048] White is really pushing.} Qc4 {[%emt 0:00:08] [#] White must now prevent ...Rc2.} 36. Rf1 $2 {[%emt 0:01:17]} (36. Qd4 $1 $18) 36... g5 {[%emt 0:00:26]} 37. Kh1 {[%emt 0:00:16] aiming for a6.} (37. a6 {is interesting.} Rc2 38. Qf3 Rxg2+ 39. Kh1) 37... Rc2 {[%emt 0:00:12]} 38. Qf3 {[%emt 0:00:02] And now a6 would win.} Rxg2 {[%emt 0:00:11]} (38... Nxg2 39. Rg1 Nh4 40. Rxg5+ Ng6 41. Rc5 $18) 39. a6 {[%emt 0:00:01]} Qc2 $2 {[%emt 0:00:01][%mdl 8192] This move loses the game for Black.} (39... Rb2 $14 40. Be3 Ng6) 40. Rf2 {[%emt 0:00:11]} Rxf2 {[%emt 0:00:02]} 41. Bxf2 {[%emt 0:00:00] a7 would be deadly.} Nd3 $2 {[%emt 0:00:13]} (41... Ne6 42. a7 Nc7) 42. Bg3 $2 {[%emt 0:00:09]} (42. Bd4 {Strongly threatening a7.} Nf4 43. a7) 42... Qb2 {[%emt 0:00:08] Prevents a7.} (42... Qc3 $142 43. Rd1 Rd8) 43. Rd1 $18 {[%emt 0:00:01]} Nc5 {[%emt 0:00:03]} (43... Ne5 $142 44. Qd5 Ng4) 44. Qd5 $2 {[%emt 0:00:30]} (44. a7 {Bd6 would kill now.} Ne6 45. Rf1) 44... Nxa6 {[%emt 0:00:01]} 45. Qxg5+ {[%emt 0:00:01]} Qg7 {[%emt 0:00:00]} 46. Qe7 {[%emt 0:00:00]} Qg6 {[%emt 0:00:02] [#]} (46... Qg4 $18 47. Rf1 Qe6) 47. Bd6 $1 {[%emt 0:00:20][%csl Gd6][%cal Re7f8] White mates.} Qe6 {[%emt 0:00:06]} 48. Rg1+ {[%emt 0:00:02][%mdl 64] Deflection} Kh8 {[%emt 0:00:00]} 49. Qxe6 {[%emt 0:00:01] An entertaining game by Sevian.   Weighted Error Value: White=0.44/Black=0.61} 1-0

[Event "CCT Airthings Masters Play-In 2023"]
[Site "Online"]
[Date "2023.02.03"]
[Round "5"]
[White "Baku_Boulevard"]
[Black "spicycaterpillar"]
[Result "1-0"]
[ECO "C77"]
[WhiteElo "2683"]
[BlackElo "2590"]
[Annotator "TA"]
[PlyCount "65"]
[EventDate "2023.02.03"]
[EventType "swiss"]
[EventCountry "NET"]
[SourceTitle "playchess.com"]
[Source "ChessBase"]
[SourceQuality "1"]
[TimeControl "600+2"]

{[%evp 14,65,0,-10,-11,-9,-10,-22,-2,-9,0,0,0,0,8,10,15,-1,6,14,14,0,6,0,0,-12,-8,-8,-4,-26,0,0,21,21,102,112,141,137,241,234,239,195,177,198,248,243,249,244,314,285,276,278,989,983]} 1. e4 {[%emt 0:00:03]} e5 {[%emt 0:00:05]} 2. Nf3 {[%emt 0:00:01]} Nc6 {[%emt 0:00:02]} 3. Bb5 {[%emt 0:00:01][%cal Bf1b5,Bb5a4,Ba4b3][%mdl 32]} Nf6 {[%emt 0:00:02]} 4. Qe2 {[%emt 0:00:01]} Bc5 {[%emt 0:00:13]} 5. c3 {[%emt 0:00:01]} O-O {[%emt 0:00:03]} 6. O-O {[%emt 0:00:01]} Re8 {[%emt 0:00:14]} 7. d3 {[%emt 0:00:04]} a6 {[%emt 0:00:33]} 8. Ba4 {[%emt 0:00:03]} b5 {[%emt 0:00:06] C77: Ruy Lopez: 3...a6 4 Ba4 Nf6, unusual lines.} 9. Bb3 {[%emt 0:00:01]} h6 {[%emt 0:00:07]} 10. Rd1 {[%emt 0:00:05]} d6 {[%emt 0:00:34] The position is equal.} 11. Nbd2 {[%emt 0:00:01]} Be6 {[%emt 0:00:46]} 12. Nf1 {[%emt 0:00:05]} Bxb3 {[%emt 0:00:26]} 13. axb3 {[%emt 0:00:02]} d5 {[%emt 0:00:41]} 14. b4 {[%emt 0:00:07] [#]} Bf8 $146 {[%emt 0:00:30]} ({Predecessor:} 14... Bb6 15. Ng3 Qd7 16. Be3 d4 17. Bd2 a5 18. bxa5 Bxa5 19. cxd4 Bxd2 20. Rxa8 Rxa8 {1-0 Mamedov,R (2654)-Robson,R (2673) Chess24 Banter Blitz Cup Qual-C 2020 (2.2)}) 15. Ng3 {[%emt 0:00:02]} Qd7 {[%emt 0:00:13]} 16. h3 {[%emt 0:00:14]} a5 {[%emt 0:00:28]} 17. bxa5 {[%emt 0:00:05]} Rxa5 {[%emt 0:00:38]} 18. Rxa5 {[%emt 0:00:07]} Nxa5 {[%emt 0:00:00]} 19. Be3 {[%emt 0:00:01]} c5 {[%emt 0:00:30]} 20. exd5 {[%emt 0:01:51]} Nxd5 {[%emt 0:00:04]} 21. Nh4 {[%emt 0:00:31][%cal Bf3h4,Bh4f5,Bf5d6][%mdl 32]} Nc6 {[%emt 0:00:55]} 22. Nhf5 {[%emt 0:00:06][%cal Oe3c5]} Kh7 {[%emt 0:00:38]} 23. Qf3 {[%emt 0:00:23]} g6 {[%emt 0:00:19] [#]} (23... Qe6 $11 {keeps the balance.}) 24. Nd6 $1 $16 {[%emt 0:00:01][%mdl 576] Discovered Attack, Double Attack} Re6 {[%emt 0:02:11] Threatens to win with ...Nxe3.} (24... Qxd6 $2 25. Qxf7+ Bg7 26. Qxe8 $18) (24... Nxe3 $2 25. Nxe8 Qxe8 26. fxe3 $18) (24... e4 25. Ndxe4) 25. Bxc5 {[%emt 0:01:46] White is more active.} ({Stronger than} 25. Qxf7+ Qxf7 26. Nxf7 Nxe3 27. fxe3 Kg7 $15) (25. Nxb5 f5 $16) (25. Nxf7 Rf6 26. Ng5+ hxg5 $17) 25... Nf6 {[%emt 0:00:18]} (25... Nc7 $16) 26. Nde4 $18 {[%emt 0:00:10]} Bg7 {[%emt 0:00:06]} 27. Be3 {[%emt 0:00:10]} Nxe4 {[%emt 0:00:06]} 28. Nxe4 {[%emt 0:00:11][%cal Bg3e4,Be4c5,Bc5a6][%mdl 32] Nc5 would be deadly.} ({But not} 28. Qxe4 f5 29. Nxf5 gxf5 30. Qxf5+ Kg8 $14) 28... Re8 {[%emt 0:00:08]} (28... Qe8 {might work better.} 29. Nc5 Rf6) 29. Ra1 {[%emt 0:00:13]} f5 {[%emt 0:00:01]} 30. Nc5 {[%emt 0:00:01]} Qc7 {[%emt 0:00:02]} 31. Qd5 {[%emt 0:00:08] Hoping for Ne6.} Rd8 {[%emt 0:00:03]} 32. Qb3 {[%emt 0:00:09] aiming for Ne6.} Rb8 $2 {[%emt 0:00:02]} (32... Qb8 33. Ra6 Rd6) 33. Na6 {[%emt 0:00:03][%csl LRb8,LRc7] Weighted Error Value: White=0.07 (flawless) /Black=0.25 (precise)} 1-0

[Event "CCT Airthings Masters Play-In 2023"]
[Site "Online"]
[Date "2023.02.03"]
[Round "5"]
[White "xxysoul6"]
[Black "exoticprincess"]
[Result "1-0"]
[ECO "B13"]
[WhiteElo "2680"]
[BlackElo "2640"]
[Annotator "TA"]
[PlyCount "89"]
[EventDate "2023.02.03"]
[EventType "swiss"]
[EventCountry "NET"]
[SourceTitle "playchess.com"]
[Source "ChessBase"]
[SourceQuality "1"]
[TimeControl "600+2"]

{[%evp 11,89,15,15,13,74,62,59,68,68,73,77,66,63,67,69,75,80,74,75,87,89,63,139,113,111,108,127,126,130,78,85,77,72,68,81,75,79,51,53,37,162,79,80,92,79,79,79,83,79,84,147,156,146,135,496,509,464,463,586,586,586,447,693,746,737,735,604,550,672,338,675,653,623,616,887,771,794,665,635,594]} 1. d4 {[%emt 0:00:04]} d5 {[%emt 0:00:30]} 2. Nf3 {[%emt 0:00:04]} Nf6 {[%emt 0:00:04]} 3. Bf4 {[%emt 0:00:04]} c5 {[%emt 0:00:07]} 4. e3 {[%emt 0:00:01]} cxd4 {[%emt 0:00:05]} 5. exd4 {[%emt 0:00:02]} Nc6 {[%emt 0:00:01]} 6. c3 {[%emt 0:00:01]} Bf5 {[%emt 0:00:03]} 7. Qb3 {[%emt 0:00:06] B13: Caro-Kann: Exchange Variation and Panov-Botvinnik Attack.} Qb6 {[%emt 0:00:07]} (7... Qc8 $11 {keeps the balance.}) 8. Na3 $5 {[%emt 0:00:38][%mdl 4] An interesting side line.} Qxb3 {[%emt 0:03:13]} 9. axb3 {[%emt 0:00:02] [#] White is slightly better.} Nh5 $146 {[%emt 0:00:00]} ({Predecessor:} 9... Rc8 10. b4 h6 11. Ne5 Nxe5 12. Bxe5 e6 13. Bb5+ Nd7 14. O-O f6 15. Bg3 Be7 {1-0 Schulz,H (2053)-Wortmann,D (1981) Ruhrgebiet Verbandsliga Gruppe 2 1516 2015 (2.2)}) 10. Be3 {[%emt 0:00:11]} a6 {[%emt 0:00:14] Wards off Nb5} 11. Be2 {[%emt 0:00:41]} Nf6 {[%emt 0:00:06]} 12. Ne5 {[%emt 0:00:22]} Nxe5 {[%emt 0:00:08]} 13. dxe5 {[%emt 0:00:00]} Nd7 {[%emt 0:00:04] [#] Black is weak on the dark squares} 14. Nb5 $1 {[%emt 0:00:08][%mdl 64] And now Nc7+ would win. Pin} Rc8 {[%emt 0:00:18] Against Nc7+} 15. Nd4 {[%emt 0:00:03] White is more active.} Be4 {[%emt 0:01:00]} 16. e6 {[%emt 0:00:40]} Nc5 {[%emt 0:00:33]} (16... fxe6 $14 17. Nxe6 (17. f3 e5 $11) 17... Rc6 18. Nxf8 Rxf8) 17. exf7+ {[%emt 0:00:58]} Kxf7 {[%emt 0:00:00]} 18. b4 {[%emt 0:00:04]} Nd3+ {[%emt 0:00:17]} 19. Bxd3 {[%emt 0:00:01]} Bxd3 {[%emt 0:00:00]} 20. Nf3 {[%emt 0:00:01]} ({White should try} 20. Kd2 Bg6 21. Bf4) 20... Bb5 {[%emt 0:00:10]} 21. Kd2 {[%emt 0:00:26]} e6 {[%emt 0:00:03]} 22. Ng5+ {[%emt 0:00:25]} Kf6 {[%emt 0:00:04][%cal Od5d4]} 23. f4 {[%emt 0:00:04]} Bd6 {[%emt 0:00:38]} 24. Rae1 {[%emt 0:00:04]} Rc4 {[%emt 0:00:50]} 25. g3 {[%emt 0:00:34] Strongly threatening b3.} (25. h4 $5 {[%cal Rg2g3]}) 25... Rhc8 {[%emt 0:00:19]} (25... e5 $14) 26. b3 {[%emt 0:00:19]} (26. Nxh7+ $6 Kf5 $14) (26. Bc5 $1 $18 {is more deadly.} Bxc5 27. Rxe6+ (27. bxc5 Bd7 $14) 27... Kf5 28. bxc5) 26... R4c6 $16 {[%emt 0:00:27]} 27. Bd4+ {[%emt 0:00:02]} (27. Nxh7+ $2 Kg6 28. Ng5 Rxc3 $19) (27. Nf3 {simplifies} Kf7 28. Rc1 R6c7 29. Ng5+) 27... e5 {[%emt 0:00:01][%mdl 64] Deflection} 28. fxe5+ {[%emt 0:00:18]} (28. Bxe5+ $2 {too greedy.} Bxe5 29. Rxe5 Rxc3 30. Re6+ Kf5 31. Re5+ Kg4 $19) (28. Nxh7+ $2 Kg6 29. fxe5 Be7 $19) 28... Kxg5 {[%emt 0:00:01]} 29. exd6 {[%emt 0:00:02]} Rxd6 {[%emt 0:00:02]} 30. Bxg7 {[%emt 0:00:07]} Rd7 {[%emt 0:00:10]} (30... Re8 $142) 31. Bd4 {[%emt 0:00:24] Black must now prevent Re5+.} Rf8 {[%emt 0:00:02]} 32. Re5+ {[%emt 0:00:09]} Kg4 $2 {[%emt 0:00:23][%mdl 8192] [#]} (32... Rf5 $16) 33. h3+ $1 $18 {[%emt 0:00:53]} Kxg3 {[%emt 0:00:09]} 34. Rg1+ {[%emt 0:00:01]} Kh2 {[%emt 0:00:16]} 35. Reg5 {[%emt 0:00:08] Be5+ would kill now.} Re7 {[%emt 0:00:01]} 36. R5g2+ {[%emt 0:00:11]} ({Weaker is} 36. Rxd5 Re2+ 37. Kc1 h6 $11) 36... Kxh3 {[%emt 0:00:01]} 37. Bc5 {[%emt 0:00:01] Threatening mate with Rg3+.} Rfe8 {[%emt 0:00:32]} 38. Bxe7 {[%emt 0:00:03]} Rxe7 {[%emt 0:00:00][%mdl 4096] Endgame KRR-KRB} 39. Rg3+ {[%emt 0:00:01]} Kh2 {[%emt 0:00:10]} 40. R1g2+ {[%emt 0:00:28]} Kh1 {[%emt 0:00:02]} 41. Rg7 {[%emt 0:00:03] White is clearly winning.} Re4 {[%emt 0:00:07]} 42. R2g5 {[%emt 0:00:13] Repels h5} (42. Rxh7+ $2 {is the wrong capture.} Kxg2 43. Rh5 Bc6 $19) 42... Re2+ {[%emt 0:00:03]} 43. Kc1 {[%emt 0:00:06]} Re1+ {[%emt 0:00:02]} 44. Kb2 {[%emt 0:00:04][%cal Rg7h7]} Re2+ {[%emt 0:00:02]} 45. Ka3 {[%emt 0:00:01] Weighted Error Value: White=0.13 (very precise) /Black=0.40} 1-0

[Event "CCT Airthings Masters Play-In 2023"]
[Site "Online"]
[Date "2023.02.03"]
[Round "5"]
[White "Duhless"]
[Black "Msb2"]
[Result "1/2-1/2"]
[ECO "E01"]
[WhiteElo "2675"]
[BlackElo "2627"]
[Annotator "TA"]
[PlyCount "63"]
[EventDate "2023.02.03"]
[EventType "swiss"]
[EventCountry "NET"]
[SourceTitle "playchess.com"]
[Source "ChessBase"]
[SourceQuality "1"]
[TimeControl "600+2"]

{[%evp 10,62,43,46,33,33,35,21,27,29,32,20,38,31,38,39,67,22,19,18,26,19,27,27,31,31,32,31,55,36,31,22,110,107,110,100,120,114,113,121,120,127,121,96,110,0,0,0,0,0,0,0,0,0,0]} 1. d4 {[%emt 0:00:03]} d5 {[%emt 0:00:06]} 2. c4 {[%emt 0:00:01]} e6 {[%emt 0:00:01]} 3. Nf3 {[%emt 0:00:01]} Nf6 {[%emt 0:00:01]} 4. g3 {[%emt 0:00:01]} Nc6 {[%emt 0:00:00]} 5. Bg2 {[%emt 0:00:04]} Bd6 {[%emt 0:00:01]} 6. O-O {[%emt 0:00:12]} O-O $1 {[%emt 0:00:02] 6...0-0 is better than 6...dxc4. E01: Catalan: Early deviations.} 7. a3 {[%emt 0:01:57] [#]} dxc4 $146 {[%emt 0:00:25]} ({Predecessor:} 7... Re8 8. c5 Be7 9. b4 Ne4 10. Bb2 b6 11. Qa4 Qd7 12. Rc1 Bf6 13. Qc2 bxc5 14. Ne5 Nxe5 15. dxe5 {½-½ Zidu,J (2579)-Bloemacher,W (2406) Remote S7 Top 57 email 2011}) 8. Nbd2 $1 {[%emt 0:00:03]} Na5 {[%emt 0:00:54]} 9. Qa4 {[%emt 0:01:00] Wards off b5} c5 {[%emt 0:00:32]} 10. Nxc4 {[%emt 0:00:31]} (10. dxc5 {seems wilder.} b5 11. Qc2 Be7 12. Ne5) 10... Nxc4 {[%emt 0:00:43]} 11. Qxc4 {[%emt 0:00:00]} cxd4 {[%emt 0:00:00]} 12. Qxd4 {[%emt 0:00:02]} Qe7 {[%emt 0:00:11]} 13. Bf4 {[%emt 0:01:35] White is more active.} (13. Rd1 $5 {[%cal Rd4d6]} Bc5 14. Qh4 $14) 13... Bxf4 {[%emt 0:00:48]} 14. Qxf4 {[%emt 0:00:06]} Bd7 {[%emt 0:00:01]} 15. Ne5 {[%emt 0:00:20]} Bb5 {[%emt 0:00:02]} 16. Rfe1 {[%emt 0:00:42]} Nd5 {[%emt 0:00:20]} 17. Bxd5 {[%emt 0:00:13]} exd5 {[%emt 0:00:00]} 18. Nf3 {[%emt 0:00:12]} Rac8 {[%emt 0:00:18]} 19. Nd4 {[%emt 0:00:05]} Bd7 {[%emt 0:00:01]} 20. Rac1 {[%emt 0:00:06]} Rc4 {[%emt 0:01:05]} (20... Qe4 $11 {keeps the balance.}) 21. Rxc4 $16 {[%emt 0:00:35]} dxc4 {[%emt 0:00:00]} 22. Qc7 {[%emt 0:00:02][%csl LRb7,LRc4]} Qf6 {[%emt 0:00:36]} 23. Qxd7 {[%emt 0:00:14]} Rd8 {[%emt 0:00:02][%cal Bf8d8,Bd8e8,Be8e3][%mdl 32]} 24. Qxb7 {[%emt 0:00:04]} Qxd4 {[%emt 0:00:01][%mdl 4096] Endgame KQR-KQR} 25. Rc1 {[%emt 0:00:22]} h5 {[%emt 0:01:38]} 26. h4 {[%emt 0:00:11]} Re8 {[%emt 0:00:34]} 27. e3 {[%emt 0:00:30]} (27. Qf3 $16) 27... Rxe3 $1 $11 {[%emt 0:00:06] The position is equal.} 28. Qc8+ {[%emt 0:00:05]} (28. fxe3 Qxe3+ 29. Kg2 Qxc1 $17) 28... Kh7 {[%emt 0:00:01]} 29. Qf5+ {[%emt 0:00:40]} ({But not} 29. fxe3 Qxe3+ 30. Kg2 Qxc1 31. Qf5+ Kh6 $17) 29... Kg8 {[%emt 0:00:01]} 30. Qc8+ {[%emt 0:00:36]} ({Reject} 30. fxe3 Qxe3+ 31. Kg2 Qxc1 32. Qc8+ Kh7 33. Qf5+ Kh6 $17) 30... Kh7 {[%emt 0:00:00]} 31. Qf5+ {[%emt 0:00:09]} (31. fxe3 Qxe3+ 32. Kg2 Qxc1 33. Qf5+ Kh6 $17) 31... Kg8 {[%emt 0:00:01]} 32. Qc8+ {[%emt 0:00:09] Weighted Error Value: White=0.10 (very precise) /Black=0.11 (very precise)} ({Don't play} 32. fxe3 Qxe3+ 33. Kg2 Qxc1 $17) 1/2-1/2

[Event "CCT Airthings Masters Play-In 2023"]
[Site "Online"]
[Date "2023.02.03"]
[Round "5"]
[White "NikoTheodorou"]
[Black "Nakamura, Hikaru"]
[Result "1/2-1/2"]
[ECO "E11"]
[WhiteElo "2675"]
[BlackElo "2768"]
[Annotator "TA"]
[PlyCount "112"]
[EventDate "2023.02.03"]
[EventType "swiss"]
[EventCountry "NET"]
[SourceTitle "playchess.com"]
[Source "ChessBase"]
[SourceQuality "1"]
[TimeControl "600+2"]

{[%evp 11,112,28,29,26,22,17,22,18,25,17,20,16,20,19,24,22,25,22,26,18,28,11,11,-10,0,-5,-4,-6,-6,-10,0,0,32,35,31,40,28,0,0,0,36,32,89,0,47,44,41,41,38,4,58,59,60,0,0,0,0,0,0,0,7,0,101,-190,0,0,105,-184,5,7,30,37,51,51,90,85,89,87,94,81,82,85,82,0,0,0,0,0,183,36,8,0,0,0,0,0,0,0,0,0,0,0,0]} 1. d4 {[%emt 0:00:03]} Nf6 {[%emt 0:00:07]} 2. c4 {[%emt 0:00:01]} e6 {[%emt 0:00:01]} 3. Nf3 {[%emt 0:00:01]} Bb4+ {[%emt 0:00:01]} 4. Bd2 {[%emt 0:00:05]} c5 {[%emt 0:00:01]} 5. Bxb4 {[%emt 0:00:03]} cxb4 {[%emt 0:00:01]} 6. e3 {[%emt 0:00:00]} b6 {[%emt 0:00:01]} 7. Nbd2 {[%emt 0:00:00] E11: Bogo-Indian.} a5 {[%emt 0:00:03]} 8. Bd3 {[%emt 0:00:01][%cal Og2g4]} d6 {[%emt 0:00:03]} 9. O-O {[%emt 0:00:01]} Bb7 {[%emt 0:00:01] [#]} 10. Qb1 $146 {[%emt 0:00:28]} ({Predecessor:} 10. Qe2 O-O 11. e4 Nfd7 12. Ne1 Nc6 13. Nc2 Qf6 14. Qe3 e5 15. d5 Ncb8 16. Be2 {½-½ Pesout,J (2245)-Vacek,M (2324) CZE-chT1W 0708 2007 (4.2)}) 10... Qe7 {[%emt 0:00:27]} 11. a3 {[%emt 0:00:06]} Na6 {[%emt 0:00:02]} 12. Ne4 {[%emt 0:00:16]} Nxe4 {[%emt 0:00:48]} 13. Bxe4 {[%emt 0:00:00]} Bxe4 {[%emt 0:00:01]} 14. Qxe4 {[%emt 0:00:01]} O-O {[%emt 0:00:00]} 15. Rfc1 {[%emt 0:00:45]} Rac8 {[%emt 0:00:05]} 16. h4 {[%emt 0:00:30]} h6 {[%emt 0:00:05]} 17. h5 {[%emt 0:00:35]} Rfe8 {[%emt 0:00:32]} 18. Rc2 {[%emt 0:00:17]} b3 {[%emt 0:00:18]} 19. Rc3 {[%emt 0:00:17]} a4 $1 {[%emt 0:00:01]} 20. Rac1 {[%emt 0:00:03]} Rc7 {[%emt 0:00:24]} 21. Qd3 {[%emt 0:00:15][%cal Oc4c5] Strongly threatening c5!} Nb8 {[%emt 0:00:02] [#]} 22. c5 $1 $36 {[%emt 0:00:21][%mdl 2048] White has the initiative.} bxc5 {[%emt 0:00:12]} 23. dxc5 {[%emt 0:00:00]} dxc5 {[%emt 0:00:00]} 24. Rc4 {[%emt 0:00:00]} (24. Qc4 $5 {[%cal Rc4a4]}) 24... Rd8 {[%emt 0:01:41]} 25. Qc3 {[%emt 0:00:02][%cal Oc4g4]} Rdc8 {[%emt 0:00:04]} 26. Rg4 {[%emt 0:00:22][%csl Gg4][%cal Rc3g7]} f6 {[%emt 0:00:05]} (26... e5 $14) 27. Qc4 {[%emt 0:00:31] White is more active.} (27. Rxa4 $16 c4 28. Nd2) 27... Qf7 {[%emt 0:01:12]} (27... Nd7 $11 {deserves consideration.}) 28. Qxa4 $14 {[%emt 0:01:09]} Qxh5 {[%emt 0:00:04]} 29. Rgc4 {[%emt 0:00:01]} Rb7 {[%emt 0:00:17]} 30. Nd4 {[%emt 0:00:11]} (30. R4c3 $5) 30... Nd7 {[%emt 0:01:26]} (30... Qd5 $1 $11) 31. Qa6 {[%emt 0:01:13]} Rcb8 {[%emt 0:01:17]} 32. Nxe6 {[%emt 0:00:50]} (32. Qxe6+ $14 Qf7 33. Qxf7+ Kxf7 34. Nf3) 32... Rb6 {[%emt 0:00:28]} 33. Qa7 {[%emt 0:00:02]} Rd6 {[%emt 0:00:16]} 34. Nf4 {[%emt 0:01:55]} Rd1+ {[%emt 0:00:04]} 35. Rxd1 {[%emt 0:00:01]} Qxd1+ {[%emt 0:00:00]} 36. Kh2 {[%emt 0:00:00] Rc3 is the strong threat.} Qd6 {[%emt 0:00:00]} (36... g5 $11 37. Nh3 Qd5) 37. Kg1 $2 {[%emt 0:00:06][%mdl 8192]} (37. Rc3 $1 $16 {[%cal Rc3d3] And now Rd3 would win.} Qc6 38. Rd3) 37... Qd1+ {[%emt 0:00:03]} (37... g5 $19 38. Nh3 Rd8) 38. Kh2 $11 {[%emt 0:00:01]} Qd6 {[%emt 0:00:00] [#]} (38... g5 $11 {remains equal.} 39. Nh3 Qd5) 39. Kg1 $2 {[%emt 0:00:00][%mdl 8192]} (39. Rc3 $1 $16 {[%cal Rc3d3] is necessary to keep the advantage. Black must now prevent Rd3.} Qc6 40. Rd3) 39... Qc6 $2 {[%emt 0:00:03]} ({Black should try} 39... g5 $19 40. Nh3 Rd8) 40. Qa5 {[%emt 0:00:15]} Rc8 {[%emt 0:00:13]} 41. Nd3 {[%emt 0:00:10]} Kh8 {[%emt 0:00:33]} 42. Qc3 {[%emt 0:00:01]} Qd6 {[%emt 0:00:11]} 43. Qxb3 {[%emt 0:00:11]} Nb6 {[%emt 0:00:01] [#]} 44. Rc1 {[%emt 0:00:00] aiming for Qc2.} c4 {[%emt 0:00:04]} 45. Qb4 {[%emt 0:00:01]} Qxd3 {[%emt 0:00:05]} 46. Qxb6 $16 {[%emt 0:00:01][%mdl 4096] Endgame KQR-KQR} Qd2 {[%emt 0:00:02]} 47. Rc3 {[%emt 0:00:15]} (47. Ra1 $16) 47... Qd1+ {[%emt 0:00:02]} 48. Kh2 {[%emt 0:00:00]} Qh5+ {[%emt 0:00:01]} 49. Kg1 {[%emt 0:00:01]} Rc5 $2 {[%emt 0:00:06]} (49... Qd1+ $11 50. Kh2 Qh5+ 51. Kg1 Qd1+) 50. Rc1 {[%emt 0:00:06]} ({Only move:} 50. Qd8+ $18 Kh7 51. Qd4) 50... Rd5 $1 $14 {[%emt 0:00:03]} 51. Qe6 {[%emt 0:00:06][%cal Og2g4] The position is equal.} (51. Rxc4 $2 Rd1#) 51... Rd1+ {[%emt 0:00:04]} 52. Rxd1 {[%emt 0:00:01]} Qxd1+ {[%emt 0:00:00]} 53. Kh2 {[%emt 0:00:00]} Qh5+ {[%emt 0:00:01]} 54. Kg1 {[%emt 0:00:04] Hoping for Qc8+.} Qd1+ {[%emt 0:00:01]} 55. Kh2 {[%emt 0:00:00] Threatens to win with Qe8+.} Qh5+ {[%emt 0:00:00]} 56. Kg1 {[%emt 0:00:05] Qc8+ would be deadly.} Qd1+ {[%emt 0:00:00] Weighted Error Value: White=0.30/Black=0.25 (precise)} 1/2-1/2